[Event "*** Titled Tuesday 3|2 Blitz"]
[Site "Chess.com"]
[Date "2017.05.02"]
[Round "5"]
[White "bilelou"]
[Black "DiogenesSinopeus"]
[Result "1-0"]
[WhiteElo "2405"]
[BlackElo "2226"]
[TimeControl "180+2"]
[EndTime "14:03:33 PDT"]
[Termination "bilelou won by resignation"]

1. e4 {[%clk 0:03:00.3]} 1... e5 {[%clk 0:03:01.1]} 2. Qh5 {[%clk 0:03:00.4]}
2... Nc6 {[%clk 0:02:56.7]} 3. Bc4 {[%clk 0:03:00.5]} 3... g6 {[%clk 0:02:58]}
4. Qf3 {[%clk 0:03:01.2]} 4... Nf6 {[%clk 0:02:56.4]} 5. Ne2 {[%clk 0:03:01.9]}
5... Bg7 {[%clk 0:02:52.2]} 6. d3 {[%clk 0:03:03.2]} 6... d6 {[%clk 0:02:47.8]}
7. h3 {[%clk 0:03:03.5]} 7... O-O {[%clk 0:02:33.1]} 8. Nbc3 {[%clk 0:03:03]}
8... Be6 {[%clk 0:02:24.2]} 9. Bg5 {[%clk 0:03:02.2]} 9... h6 {[%clk 0:02:15.1]}
10. Be3 {[%clk 0:02:46.8]} 10... a6 {[%clk 0:01:52.1]} 11. g4 {[%clk 0:02:41.5]}
11... b5 {[%clk 0:01:47.6]} 12. Bd5 {[%clk 0:02:41.1]} 12... Bxd5 {[%clk
0:01:42.4]} 13. Nxd5 {[%clk 0:02:35]} 13... Nxd5 {[%clk 0:01:25.1]} 14. exd5
{[%clk 0:02:36]} 14... Ne7 {[%clk 0:01:24.2]} 15. h4 {[%clk 0:02:33.4]} 15...
Qd7 {[%clk 0:01:18.2]} 16. h5 {[%clk 0:02:34]} 16... g5 {[%clk 0:01:13.8]} 17.
Ng3 {[%clk 0:02:33.5]} 17... f5 {[%clk 0:01:13.8]} 18. gxf5 {[%clk 0:02:34.5]}
18... Nxf5 {[%clk 0:01:12.7]} 19. Nxf5 {[%clk 0:02:30.8]} 19... Rxf5 {[%clk
0:01:12]} 20. Qe4 {[%clk 0:02:32.3]} 20... Raf8 {[%clk 0:01:12.5]} 21. O-O-O
{[%clk 0:02:32]} 21... a5 {[%clk 0:01:09.1]} 22. Kb1 {[%clk 0:02:32.9]} 22... b4
{[%clk 0:01:08.4]} 23. Rc1 {[%clk 0:02:33.2]} 23... Qb5 {[%clk 0:01:06.3]} 24.
c4 {[%clk 0:02:32.6]} 24... bxc3 {[%clk 0:00:45.7]} 25. Rxc3 {[%clk 0:02:32.9]}
25... R5f7 {[%clk 0:00:43.6]} 26. Rhc1 {[%clk 0:02:29.3]} 26... Rb8 {[%clk
0:00:37.4]} 27. Rb3 {[%clk 0:02:28.4]} 27... Qe8 {[%clk 0:00:38.7]} 28. Rxb8
{[%clk 0:02:25.8]} 28... Qxb8 {[%clk 0:00:40.6]} 29. Qa4 {[%clk 0:02:27.1]}
29... e4 {[%clk 0:00:35.2]} 30. d4 {[%clk 0:02:25.1]} 30... Qb4 {[%clk
0:00:05.1]} 31. Qxb4 {[%clk 0:02:20.2]} 31... axb4 {[%clk 0:00:07]} 32. a4
{[%clk 0:02:19.4]} 32... bxa3 {[%clk 0:00:04.4]} 33. bxa3 {[%clk 0:02:20.7]}
33... Kf8 {[%clk 0:00:04]} 34. a4 {[%clk 0:02:22]} 34... Ke8 {[%clk 0:00:05.5]}
35. Kc2 {[%clk 0:02:16.6]} 35... Kd7 {[%clk 0:00:06.6]} 36. a5 {[%clk
0:02:17.9]} 36... Rf8 {[%clk 0:00:08]} 37. a6 {[%clk 0:02:18.9]} 37... Ra8
{[%clk 0:00:09]} 38. Ra1 {[%clk 0:02:20.5]} 38... Ra7 {[%clk 0:00:08.6]} 39. Kb3
{[%clk 0:02:21.2]} 39... Bf6 {[%clk 0:00:09.1]} 40. Kc4 {[%clk 0:02:22.4]} 40...
Bd8 {[%clk 0:00:09.7]} 41. Kb5 {[%clk 0:02:23.4]} 41... Ra8 {[%clk 0:00:06.5]}
42. a7 {[%clk 0:02:22.9]} 42... Bf6 {[%clk 0:00:05.2]} 43. Ra4 {[%clk
0:02:20.7]} 43... Be7 {[%clk 0:00:03.5]} 44. Bd2 {[%clk 0:02:21.1]} 44... Bf6
{[%clk 0:00:03.5]} 45. Ka6 {[%clk 0:02:19.8]} 45... Kc8 {[%clk 0:00:04]} 46. Rc4
{[%clk 0:02:20.2]} 46... Be7 {[%clk 0:00:03]} 47. Ba5 {[%clk 0:02:20.6]} 47...
Bd8 {[%clk 0:00:04.5]} 48. Rc6 {[%clk 0:02:21.3]} 48... Be7 {[%clk 0:00:02.3]}
49. Rxc7+ {[%clk 0:02:22]} 49... Kd8 {[%clk 0:00:03.9]} 50. Kb7 {[%clk
0:02:20.9]} 50... Rxa7+ {[%clk 0:00:04.3]} 51. Kxa7 {[%clk 0:02:21.9]} 1-0

[Event "*** Titled Tuesday 3|2 Blitz"]
[Site "Chess.com"]
[Date "2017.05.02"]
[Round "5"]
[White "AdrianaNikolova"]
[Black "GameOverBro"]
[Result "1-0"]
[WhiteElo "2322"]
[BlackElo "2291"]
[TimeControl "180+2"]
[EndTime "14:04:04 PDT"]
[Termination "AdrianaNikolova won by checkmate"]

1. e4 {[%clk 0:02:51.7]} 1... d6 {[%clk 0:03:00.5]} 2. d4 {[%clk 0:02:52]} 2...
Nf6 {[%clk 0:03:01.6]} 3. Nc3 {[%clk 0:02:51.9]} 3... e5 {[%clk 0:03:02.8]} 4.
Nf3 {[%clk 0:02:51]} 4... Nbd7 {[%clk 0:03:03.2]} 5. Bc4 {[%clk 0:02:52.5]} 5...
Be7 {[%clk 0:03:04.3]} 6. O-O {[%clk 0:02:54.1]} 6... O-O {[%clk 0:03:05.3]} 7.
Re1 {[%clk 0:02:55.6]} 7... c6 {[%clk 0:03:05.8]} 8. a4 {[%clk 0:02:57.1]} 8...
h6 {[%clk 0:03:05.4]} 9. Ba2 {[%clk 0:02:58.5]} 9... Re8 {[%clk 0:03:04.5]} 10.
h3 {[%clk 0:02:49.7]} 10... Qc7 {[%clk 0:03:05.3]} 11. Be3 {[%clk 0:02:50.2]}
11... Nf8 {[%clk 0:03:06]} 12. Qe2 {[%clk 0:02:44]} 12... Ng6 {[%clk 0:03:03.6]}
13. Rad1 {[%clk 0:02:37.9]} 13... Nh5 {[%clk 0:03:04.4]} 14. Nxe5 {[%clk
0:02:31.3]} 14... Nhf4 {[%clk 0:02:56.8]} 15. Bxf7+ {[%clk 0:02:30.5]} 15... Kh7
{[%clk 0:02:16.7]} 16. Bxf4 {[%clk 0:02:15.1]} 16... Nxf4 {[%clk 0:02:12.7]} 17.
Qf3 {[%clk 0:02:16.1]} 17... dxe5 {[%clk 0:02:12]} 18. Bxe8 {[%clk 0:02:11.6]}
18... Bxh3 {[%clk 0:02:08.9]} 19. gxh3 {[%clk 0:01:51.7]} 19... Rxe8 {[%clk
0:02:08.9]} 20. dxe5 {[%clk 0:01:51.6]} 20... Qxe5 {[%clk 0:02:07.2]} 21. Ne2
{[%clk 0:01:36.7]} 21... Rf8 {[%clk 0:01:26.3]} 22. Qg3 {[%clk 0:00:59.5]} 22...
Bc5 {[%clk 0:01:20.8]} 23. Nxf4 {[%clk 0:00:52.4]} 23... Rxf4 {[%clk 0:01:12.1]}
24. Re2 {[%clk 0:00:52.5]} 24... h5 {[%clk 0:01:00]} 25. Kg2 {[%clk 0:00:38.1]}
25... h4 {[%clk 0:00:57.3]} 26. Qh2 {[%clk 0:00:21.4]} 26... Bxf2 {[%clk
0:00:52.5]} 27. Kh1 {[%clk 0:00:15.5]} 27... Bg3 {[%clk 0:00:51]} 28. Qg2 {[%clk
0:00:17]} 28... Qxb2 {[%clk 0:00:49.1]} 29. Rf1 {[%clk 0:00:17.7]} 29... Qf6
{[%clk 0:00:44.5]} 30. Rxf4 {[%clk 0:00:13.6]} 30... Qxf4 {[%clk 0:00:46.4]} 31.
Rd2 {[%clk 0:00:10.1]} 31... Qe3 {[%clk 0:00:44.5]} 32. Qe2 {[%clk 0:00:08.9]}
32... Qc3 {[%clk 0:00:42.4]} 33. Kg2 {[%clk 0:00:10.1]} 33... Be5 {[%clk
0:00:43]} 34. Qh5+ {[%clk 0:00:10.4]} 34... Kg8 {[%clk 0:00:35.2]} 35. Rd8#
{[%clk 0:00:12.3]} 1-0

[Event "*** Titled Tuesday 3|2 Blitz"]
[Site "Chess.com"]
[Date "2017.05.02"]
[Round "5"]
[White "Iball95"]
[Black "biostatistician"]
[Result "0-1"]
[WhiteElo "2491"]
[BlackElo "2415"]
[TimeControl "180+2"]
[EndTime "14:04:32 PDT"]
[Termination "biostatistician won by resignation"]

1. e4 {[%clk 0:03:02]} 1... e6 {[%clk 0:03:00.6]} 2. d4 {[%clk 0:03:00.1]} 2...
d5 {[%clk 0:03:02.5]} 3. Nc3 {[%clk 0:03:01]} 3... Nf6 {[%clk 0:03:02.5]} 4. Bg5
{[%clk 0:03:02.3]} 4... Be7 {[%clk 0:03:02.7]} 5. exd5 {[%clk 0:03:03.1]} 5...
Nxd5 {[%clk 0:03:02.7]} 6. Bxe7 {[%clk 0:03:03.2]} 6... Qxe7 {[%clk 0:03:04.6]}
7. Bd3 {[%clk 0:03:01.2]} 7... Qb4 {[%clk 0:02:37.3]} 8. Ne2 {[%clk 0:03:01]}
8... Qxb2 {[%clk 0:02:36]} 9. Nxd5 {[%clk 0:03:02]} 9... exd5 {[%clk 0:02:36.7]}
10. O-O {[%clk 0:03:02.9]} 10... O-O {[%clk 0:02:36.9]} 11. Nf4 {[%clk
0:02:46.7]} 11... c6 {[%clk 0:02:30.5]} 12. Qh5 {[%clk 0:02:44.2]} 12... h6
{[%clk 0:02:27.8]} 13. Rad1 {[%clk 0:02:28.4]} 13... Nd7 {[%clk 0:02:25.3]} 14.
Rfe1 {[%clk 0:02:20.4]} 14... Nf6 {[%clk 0:02:24.8]} 15. Qh4 {[%clk 0:02:21.5]}
15... Qxa2 {[%clk 0:02:14.9]} 16. Re7 {[%clk 0:01:55.9]} 16... Qa3 {[%clk
0:02:03.1]} 17. Rde1 {[%clk 0:01:52.5]} 17... Qd6 {[%clk 0:02:02.5]} 18. h3
{[%clk 0:01:29.5]} 18... a5 {[%clk 0:01:58.1]} 19. R1e5 {[%clk 0:01:09.5]} 19...
a4 {[%clk 0:01:54.1]} 20. Qg3 {[%clk 0:00:42.5]} 20... a3 {[%clk 0:01:45.6]} 21.
Ng6 {[%clk 0:00:22.5]} 21... a2 {[%clk 0:01:14.4]} 22. Nxf8 {[%clk 0:00:19.4]}
22... a1=Q+ {[%clk 0:01:14.9]} 23. Kh2 {[%clk 0:00:19.2]} 23... Qxd4 {[%clk
0:00:51.6]} 24. Nh7 {[%clk 0:00:13.3]} 24... Nxh7 {[%clk 0:00:30.3]} 25. f4
{[%clk 0:00:08.4]} 25... Nf8 {[%clk 0:00:18.6]} 26. Re8 {[%clk 0:00:06.8]} 26...
Qf6 {[%clk 0:00:18.5]} 27. f5 {[%clk 0:00:05.1]} 27... b5 {[%clk 0:00:15.9]} 28.
Qe1 {[%clk 0:00:06]} 28... Bb7 {[%clk 0:00:15.9]} 29. R8e7 {[%clk 0:00:05.4]}
29... Ba6 {[%clk 0:00:13.5]} 30. Qg3 {[%clk 0:00:02.5]} 30... Rd8 {[%clk
0:00:13.1]} 31. c3 {[%clk 0:00:03.3]} 31... Qc5 {[%clk 0:00:13.3]} 32. Qf4
{[%clk 0:00:04]} 32... Qcd6 {[%clk 0:00:13.8]} 33. Kg1 {[%clk 0:00:03.5]} 33...
Qfxe7 {[%clk 0:00:14.3]} 34. Rxe7 {[%clk 0:00:04.3]} 34... Qxf4 {[%clk
0:00:14.9]} 35. Rxf7 {[%clk 0:00:06.2]} 35... Kxf7 {[%clk 0:00:15.1]} 36. f6
{[%clk 0:00:08.1]} 36... Qe3+ {[%clk 0:00:15.8]} 0-1

[Event "*** Titled Tuesday 3|2 Blitz"]
[Site "Chess.com"]
[Date "2017.05.02"]
[Round "5"]
[White "wonderfultime"]
[Black "chessdude"]
[Result "1-0"]
[WhiteElo "2586"]
[BlackElo "2426"]
[TimeControl "180+2"]
[EndTime "14:04:39 PDT"]
[Termination "wonderfultime won by checkmate"]

1. d4 {[%clk 0:03:01.9]} 1... Nf6 {[%clk 0:03:00.3]} 2. c4 {[%clk 0:03:00.9]}
2... e6 {[%clk 0:03:01.3]} 3. Nc3 {[%clk 0:03:01.4]} 3... Bb4 {[%clk 0:03:01.8]}
4. e3 {[%clk 0:03:02.9]} 4... O-O {[%clk 0:03:02.6]} 5. Ne2 {[%clk 0:03:04.3]}
5... c6 {[%clk 0:03:03.9]} 6. a3 {[%clk 0:03:03.8]} 6... Ba5 {[%clk 0:03:05.2]}
7. c5 {[%clk 0:03:05.3]} 7... d5 {[%clk 0:03:00.7]} 8. cxd6 {[%clk 0:03:07.2]}
8... Qxd6 {[%clk 0:03:00]} 9. b4 {[%clk 0:03:08.8]} 9... Bc7 {[%clk 0:03:00.8]}
10. g3 {[%clk 0:03:10.7]} 10... Nbd7 {[%clk 0:02:59.9]} 11. Bg2 {[%clk
0:03:11.8]} 11... e5 {[%clk 0:03:01.3]} 12. O-O {[%clk 0:03:11.4]} 12... exd4
{[%clk 0:02:59]} 13. Nxd4 {[%clk 0:03:11.2]} 13... Nb6 {[%clk 0:03:00.5]} 14.
Qb3 {[%clk 0:03:06.6]} 14... Re8 {[%clk 0:02:50.6]} 15. a4 {[%clk 0:03:02.8]}
15... Be6 {[%clk 0:02:47.6]} 16. Nxe6 {[%clk 0:03:02]} 16... Qxe6 {[%clk
0:02:49.1]} 17. Rb1 {[%clk 0:02:46.9]} 17... Nbd5 {[%clk 0:02:42.6]} 18. Ne2
{[%clk 0:02:39.2]} 18... Rad8 {[%clk 0:02:36.1]} 19. Nd4 {[%clk 0:02:32.6]}
19... Qg4 {[%clk 0:02:32.4]} 20. Bb2 {[%clk 0:02:24.3]} 20... h5 {[%clk
0:02:31.6]} 21. Ba1 {[%clk 0:01:20.2]} 21... h4 {[%clk 0:02:30.3]} 22. Qd1
{[%clk 0:01:21.2]} 22... Qg6 {[%clk 0:02:14.4]} 23. Qf3 {[%clk 0:01:21.3]} 23...
hxg3 {[%clk 0:02:13.5]} 24. hxg3 {[%clk 0:01:22.4]} 24... Ne4 {[%clk 0:02:03.1]}
25. Rbd1 {[%clk 0:01:04.5]} 25... f6 {[%clk 0:01:30.7]} 26. b5 {[%clk
0:00:55.8]} 26... Ndc3 {[%clk 0:01:20.4]} 27. Bxc3 {[%clk 0:00:45.3]} 27... Nxc3
{[%clk 0:01:21]} 28. Rc1 {[%clk 0:00:46.7]} 28... Na2 {[%clk 0:01:12.2]} 29. Rc4
{[%clk 0:00:44.6]} 29... Be5 {[%clk 0:01:10]} 30. bxc6 {[%clk 0:00:44.8]} 30...
bxc6 {[%clk 0:01:00.6]} 31. Nxc6 {[%clk 0:00:46.7]} 31... Rd6 {[%clk 0:01:01.1]}
32. Nxe5 {[%clk 0:00:42.8]} 32... Rxe5 {[%clk 0:01:01.6]} 33. Qa8+ {[%clk
0:00:36.4]} 33... Re8 {[%clk 0:00:58.5]} 34. Rc8 {[%clk 0:00:36.8]} 34... Rxc8
{[%clk 0:00:53.9]} 35. Qxc8+ {[%clk 0:00:38.7]} 35... Kh7 {[%clk 0:00:55.3]} 36.
Qh3+ {[%clk 0:00:35.5]} 36... Kg8 {[%clk 0:00:53]} 37. Qc8+ {[%clk 0:00:36.6]}
37... Kh7 {[%clk 0:00:53.5]} 38. Qc4 {[%clk 0:00:38.1]} 38... Rd2 {[%clk
0:00:46.3]} 39. Be4 {[%clk 0:00:38.6]} 39... f5 {[%clk 0:00:47.6]} 40. Kg2
{[%clk 0:00:39.5]} 40... Qf6 {[%clk 0:00:23.2]} 41. Bc6 {[%clk 0:00:31.6]} 41...
Rd8 {[%clk 0:00:18.6]} 42. Rh1+ {[%clk 0:00:28.1]} 42... Kg6 {[%clk 0:00:20.1]}
43. Bf3 {[%clk 0:00:30]} 43... Nc3 {[%clk 0:00:17.6]} 44. Bh5+ {[%clk 0:00:31]}
44... Kh6 {[%clk 0:00:19]} 45. Be8+ {[%clk 0:00:31.7]} 45... Kg5 {[%clk
0:00:20.4]} 46. Qf4# {[%clk 0:00:32.8]} 1-0

[Event "*** Titled Tuesday 3|2 Blitz"]
[Site "Chess.com"]
[Date "2017.05.02"]
[Round "5"]
[White "Robin-Side"]
[Black "martinique24"]
[Result "1-0"]
[WhiteElo "2287"]
[BlackElo "2426"]
[TimeControl "180+2"]
[EndTime "14:04:46 PDT"]
[Termination "Robin-Side won on time"]

1. e4 {[%clk 0:03:02]} 1... c5 {[%clk 0:02:56.5]} 2. Nf3 {[%clk 0:03:02.6]} 2...
d6 {[%clk 0:02:57.6]} 3. d4 {[%clk 0:03:03.6]} 3... cxd4 {[%clk 0:02:59.5]} 4.
Nxd4 {[%clk 0:03:05.1]} 4... Nf6 {[%clk 0:03:00.6]} 5. Nc3 {[%clk 0:03:06.3]}
5... a6 {[%clk 0:03:02.1]} 6. Be2 {[%clk 0:03:06.5]} 6... e5 {[%clk 0:03:02]} 7.
Nb3 {[%clk 0:03:07.5]} 7... Be7 {[%clk 0:03:03.5]} 8. Be3 {[%clk 0:03:08.1]}
8... O-O {[%clk 0:03:04.3]} 9. g4 {[%clk 0:03:09.5]} 9... Be6 {[%clk 0:02:58.9]}
10. g5 {[%clk 0:03:10]} 10... Nfd7 {[%clk 0:03:00.2]} 11. h4 {[%clk 0:03:10]}
11... a5 {[%clk 0:02:54.5]} 12. f4 {[%clk 0:02:44.5]} 12... exf4 {[%clk
0:02:10.3]} 13. Bxf4 {[%clk 0:02:45.4]} 13... Ne5 {[%clk 0:02:10.6]} 14. Nd4
{[%clk 0:02:38.8]} 14... Nbc6 {[%clk 0:02:04]} 15. Qd2 {[%clk 0:02:29.7]} 15...
a4 {[%clk 0:01:51.2]} 16. a3 {[%clk 0:02:27.6]} 16... Qb6 {[%clk 0:01:33.2]} 17.
Nxe6 {[%clk 0:02:25.3]} 17... fxe6 {[%clk 0:01:31.4]} 18. O-O-O {[%clk
0:02:25.5]} 18... Ra5 {[%clk 0:01:20.2]} 19. h5 {[%clk 0:02:21.3]} 19... Rxf4
{[%clk 0:01:13.4]} 20. Qxf4 {[%clk 0:02:15.7]} 20... Bxg5 {[%clk 0:01:09.8]} 21.
Qxg5 {[%clk 0:02:02.6]} 21... Nd3+ {[%clk 0:01:10.5]} 22. Rxd3 {[%clk
0:02:00.2]} 22... Rxg5 {[%clk 0:01:11.5]} 23. Rxd6 {[%clk 0:02:01.1]} 23... Rg2
{[%clk 0:01:04.5]} 24. Bc4 {[%clk 0:01:42.8]} 24... Qf2 {[%clk 0:00:52.7]} 25.
Bd3 {[%clk 0:00:33.6]} 25... Ne5 {[%clk 0:00:51.8]} 26. Rd8+ {[%clk 0:00:16.3]}
26... Kf7 {[%clk 0:00:52.5]} 27. Be2 {[%clk 0:00:15.6]} 27... Qe3+ {[%clk
0:00:42]} 28. Kb1 {[%clk 0:00:16.7]} 28... Rxe2 {[%clk 0:00:41.4]} 29. Nxe2
{[%clk 0:00:17.1]} 29... Qxe2 {[%clk 0:00:43.3]} 30. Rb8 {[%clk 0:00:15.7]}
30... Kf6 {[%clk 0:00:32.7]} 31. Rxb7 {[%clk 0:00:13]} 31... Qxe4 {[%clk
0:00:33.1]} 32. Rf1+ {[%clk 0:00:13.8]} 32... Nf3 {[%clk 0:00:30.3]} 33. Rb4
{[%clk 0:00:10.8]} 33... Qe2 {[%clk 0:00:31.2]} 34. Rf4+ {[%clk 0:00:11.4]}
34... Kg5 {[%clk 0:00:32.5]} 35. R4xf3 {[%clk 0:00:12.4]} 35... Kxh5 {[%clk
0:00:30]} 36. R3f2 {[%clk 0:00:12.3]} 36... Qe3 {[%clk 0:00:22.6]} 37. Rh1+
{[%clk 0:00:07.8]} 37... Kg4 {[%clk 0:00:21.8]} 38. Rg1+ {[%clk 0:00:08.6]}
38... Kh4 {[%clk 0:00:19.3]} 39. Rh2+ {[%clk 0:00:08.8]} 1-0

[Event "*** Titled Tuesday 3|2 Blitz"]
[Site "Chess.com"]
[Date "2017.05.02"]
[Round "5"]
[White "metalbattler"]
[Black "XiaoKangZhong"]
[Result "0-1"]
[WhiteElo "2011"]
[BlackElo "2012"]
[TimeControl "180+2"]
[EndTime "14:04:46 PDT"]
[Termination "XiaoKangZhong won by resignation"]

1. e4 {[%clk 0:03:02]} 1... c5 {[%clk 0:02:39.4]} 2. Nc3 {[%clk 0:03:00.5]} 2...
Nc6 {[%clk 0:02:38.9]} 3. Bb5 {[%clk 0:03:01.9]} 3... Nd4 {[%clk 0:02:38.4]} 4.
Nf3 {[%clk 0:03:01.9]} 4... Nxb5 {[%clk 0:02:36.2]} 5. Nxb5 {[%clk 0:03:03.8]}
5... a6 {[%clk 0:02:37]} 6. Nc3 {[%clk 0:03:03.5]} 6... d6 {[%clk 0:02:36.5]} 7.
d4 {[%clk 0:03:04.7]} 7... cxd4 {[%clk 0:02:37]} 8. Qxd4 {[%clk 0:03:05.4]} 8...
Nf6 {[%clk 0:02:34.9]} 9. Bg5 {[%clk 0:03:06.8]} 9... b5 {[%clk 0:02:32.1]} 10.
Bxf6 {[%clk 0:03:05.4]} 10... gxf6 {[%clk 0:02:32.3]} 11. O-O {[%clk 0:03:06.9]}
11... Rg8 {[%clk 0:02:26.8]} 12. a4 {[%clk 0:03:03.5]} 12... bxa4 {[%clk
0:02:09.7]} 13. Nxa4 {[%clk 0:02:52.2]} 13... Qd7 {[%clk 0:01:48.1]} 14. Nb6
{[%clk 0:02:41.3]} 14... Qg4 {[%clk 0:01:48]} 15. Ne1 {[%clk 0:02:37.6]} 15...
Rb8 {[%clk 0:01:41.5]} 16. Nxc8 {[%clk 0:02:34.8]} 16... Rxc8 {[%clk 0:01:39.1]}
17. Rxa6 {[%clk 0:02:30.6]} 17... Bh6 {[%clk 0:01:38.2]} 18. Qa4+ {[%clk
0:02:12.2]} 18... Kf8 {[%clk 0:01:37]} 19. Ra8 {[%clk 0:01:52.4]} 19... Rxa8
{[%clk 0:01:33.7]} 20. Qxa8+ {[%clk 0:01:53.9]} 20... Kg7 {[%clk 0:01:34.6]} 21.
Qb7 {[%clk 0:01:46.4]} 21... e6 {[%clk 0:01:15.8]} 22. Qc6 {[%clk 0:01:14.5]}
22... Kh8 {[%clk 0:00:52.6]} 23. g3 {[%clk 0:01:11.9]} 23... Bf4 {[%clk
0:00:44.9]} 24. Nd3 {[%clk 0:00:57.2]} 24... Be5 {[%clk 0:00:40.4]} 25. Nxe5
{[%clk 0:00:55.3]} 25... dxe5 {[%clk 0:00:40.7]} 26. b4 {[%clk 0:00:52.2]} 26...
h5 {[%clk 0:00:37]} 27. f3 {[%clk 0:00:20.9]} 27... Qg5 {[%clk 0:00:30.2]} 28.
Qc3 {[%clk 0:00:13.6]} 28... Qg7 {[%clk 0:00:20.6]} 29. Kg2 {[%clk 0:00:11.9]}
29... f5 {[%clk 0:00:21.1]} 30. exf5 {[%clk 0:00:10.1]} 30... exf5 {[%clk
0:00:21.7]} 31. f4 {[%clk 0:00:11.1]} 31... e4 {[%clk 0:00:21.5]} 32. Qxg7+
{[%clk 0:00:12.2]} 32... Kxg7 {[%clk 0:00:22.8]} 33. Rb1 {[%clk 0:00:12.7]}
33... Rb8 {[%clk 0:00:23.9]} 34. b5 {[%clk 0:00:12.4]} 34... Kf8 {[%clk
0:00:25.1]} 35. c4 {[%clk 0:00:13.7]} 35... Ke7 {[%clk 0:00:26.3]} 36. Kf2
{[%clk 0:00:14.8]} 36... Kd6 {[%clk 0:00:27.2]} 37. Ke3 {[%clk 0:00:16.1]} 37...
Kc5 {[%clk 0:00:28.5]} 38. b6 {[%clk 0:00:11.9]} 38... Rxb6 {[%clk 0:00:27]} 39.
Rxb6 {[%clk 0:00:10]} 39... Kxb6 {[%clk 0:00:27.9]} 40. Kd4 {[%clk 0:00:11.6]}
40... Kc6 {[%clk 0:00:29]} 41. h3 {[%clk 0:00:13.1]} 41... Kd6 {[%clk
0:00:28.8]} 42. g4 {[%clk 0:00:14.5]} 42... hxg4 {[%clk 0:00:29.2]} 43. hxg4
{[%clk 0:00:16.4]} 43... fxg4 {[%clk 0:00:30.7]} 44. Kxe4 {[%clk 0:00:17.2]}
44... Kc6 {[%clk 0:00:32.1]} 45. f5 {[%clk 0:00:16.8]} 45... f6 {[%clk
0:00:33.4]} 46. Kf4 {[%clk 0:00:16.6]} 46... Kc5 {[%clk 0:00:34.8]} 47. Kxg4
{[%clk 0:00:18.5]} 47... Kxc4 {[%clk 0:00:36.3]} 48. Kh5 {[%clk 0:00:20.4]}
48... Kd5 {[%clk 0:00:36.9]} 49. Kg6 {[%clk 0:00:22.3]} 49... Ke5 {[%clk
0:00:37.9]} 0-1

[Event "*** Titled Tuesday 3|2 Blitz"]
[Site "Chess.com"]
[Date "2017.05.02"]
[Round "5"]
[White "gmjoey1"]
[Black "djogrodek1"]
[Result "0-1"]
[WhiteElo "2498"]
[BlackElo "2427"]
[TimeControl "180+2"]
[EndTime "14:04:55 PDT"]
[Termination "djogrodek1 won by checkmate"]

1. e4 {[%clk 0:02:56.8]} 1... c6 {[%clk 0:02:55]} 2. Nc3 {[%clk 0:02:54.7]} 2...
d5 {[%clk 0:02:56.9]} 3. Nf3 {[%clk 0:02:55.4]} 3... Nf6 {[%clk 0:02:57.3]} 4.
e5 {[%clk 0:02:50.5]} 4... Ne4 {[%clk 0:02:58.8]} 5. Ne2 {[%clk 0:02:49.6]} 5...
Qb6 {[%clk 0:02:58.7]} 6. d4 {[%clk 0:02:48.4]} 6... e6 {[%clk 0:03:00.2]} 7.
Ng3 {[%clk 0:02:45.7]} 7... c5 {[%clk 0:02:25.2]} 8. Bd3 {[%clk 0:02:45.8]} 8...
Nxg3 {[%clk 0:02:22.6]} 9. hxg3 {[%clk 0:02:47.7]} 9... cxd4 {[%clk 0:02:24.3]}
10. Ng5 {[%clk 0:02:32.9]} 10... Nc6 {[%clk 0:02:20.6]} 11. Nxh7 {[%clk
0:02:26.7]} 11... Bd7 {[%clk 0:02:21.4]} 12. Nf6+ {[%clk 0:02:24.9]} 12... gxf6
{[%clk 0:02:23.3]} 13. Rxh8 {[%clk 0:02:25.1]} 13... O-O-O {[%clk 0:02:24.8]}
14. Kf1 {[%clk 0:02:21.3]} 14... fxe5 {[%clk 0:02:25.7]} 15. Bg5 {[%clk
0:02:14.4]} 15... Re8 {[%clk 0:02:20.8]} 16. Qh5 {[%clk 0:02:13.3]} 16... e4
{[%clk 0:01:46.5]} 17. Qxf7 {[%clk 0:02:10.1]} 17... Ne5 {[%clk 0:01:10.7]} 18.
Qxf8 {[%clk 0:02:01.1]} 18... Rxf8 {[%clk 0:01:08.5]} 19. Rxf8+ {[%clk
0:02:00.6]} 19... Be8 {[%clk 0:01:07.6]} 20. Rxe8+ {[%clk 0:02:01.1]} 20... Kd7
{[%clk 0:01:08.8]} 21. Re7+ {[%clk 0:01:56.3]} 21... Kd6 {[%clk 0:00:55.8]} 22.
Be2 {[%clk 0:01:54.4]} 22... d3 {[%clk 0:00:53.8]} 23. cxd3 {[%clk 0:01:54.2]}
23... exd3 {[%clk 0:00:53.7]} 24. Bh5 {[%clk 0:01:54.1]} 24... Qxb2 {[%clk
0:00:52.1]} 25. Rd1 {[%clk 0:01:52.9]} 25... Nc6 {[%clk 0:00:36.7]} 26. Rh7
{[%clk 0:01:45.7]} 26... e5 {[%clk 0:00:32]} 27. Rxd3 {[%clk 0:01:41.4]} 27...
Qb1+ {[%clk 0:00:31.5]} 28. Ke2 {[%clk 0:01:41.6]} 28... Qc2+ {[%clk 0:00:20]}
29. Bd2 {[%clk 0:01:35.7]} 29... Nd4+ {[%clk 0:00:21]} 30. Rxd4 {[%clk
0:01:35.7]} 30... Qxh7 {[%clk 0:00:19.6]} 31. Rh4 {[%clk 0:01:32.2]} 31... Qb1
{[%clk 0:00:17.7]} 32. Be8 {[%clk 0:01:27.4]} 32... e4 {[%clk 0:00:15.5]} 33.
Rh6+ {[%clk 0:01:27.7]} 33... Ke7 {[%clk 0:00:15.1]} 34. Bh5 {[%clk 0:01:25.6]}
34... Qd3+ {[%clk 0:00:15.9]} 35. Ke1 {[%clk 0:01:25.9]} 35... d4 {[%clk
0:00:13.8]} 36. Rh7+ {[%clk 0:01:22.4]} 36... Kf6 {[%clk 0:00:11.6]} 37. Rh6+
{[%clk 0:01:22.2]} 37... Kg7 {[%clk 0:00:11.7]} 38. Re6 {[%clk 0:01:22.5]} 38...
Qb1+ {[%clk 0:00:10.8]} 39. Bd1 {[%clk 0:01:22.2]} 39... b5 {[%clk 0:00:07.3]}
40. g4 {[%clk 0:01:18.1]} 40... Kf7 {[%clk 0:00:08.3]} 41. Rd6 {[%clk
0:01:17.5]} 41... d3 {[%clk 0:00:05.4]} 42. Rd4 {[%clk 0:01:15]} 42... Qxa2
{[%clk 0:00:05.8]} 43. Rxe4 {[%clk 0:01:15.3]} 43... a5 {[%clk 0:00:07.4]} 44.
g5 {[%clk 0:01:14.7]} 44... b4 {[%clk 0:00:08.6]} 45. Rf4+ {[%clk 0:01:13.2]}
45... Kg8 {[%clk 0:00:08.3]} 46. Rf6 {[%clk 0:01:08.9]} 46... b3 {[%clk
0:00:06.2]} 47. Rb6 {[%clk 0:01:09.8]} 47... a4 {[%clk 0:00:07]} 48. g6 {[%clk
0:01:09.2]} 48... Qa1 {[%clk 0:00:06.4]} 49. Rb8+ {[%clk 0:01:06.4]} 49... Kg7
{[%clk 0:00:06.4]} 50. Rb5 {[%clk 0:01:06.9]} 50... Kxg6 {[%clk 0:00:05.3]} 51.
Rb6+ {[%clk 0:01:06.6]} 51... Kg7 {[%clk 0:00:06.2]} 52. f4 {[%clk 0:01:04.7]}
52... Qd4 {[%clk 0:00:06.7]} 53. Rb4 {[%clk 0:01:04.9]} 53... Qg1# {[%clk
0:00:07.5]} 0-1